bitfinex-derivatives/quotes_BTCF0:USTF0_20251219
["timestamp","ask_amount","ask_price","bid_price","bid_amount"]
[1766131720302,0.01153012,88087.0,88070.0,0.00017032]
[1766131720717,0.0113603,88083.0,88070.0,0.00017032]
[1766131721009,0.01153012,88087.0,88070.0,0.00017032]
[1766131721714,0.00017032,88087.0,88070.0,0.00017032]
[1766131722404,0.01153012,88087.0,88070.0,0.00017032]
[1766131722603,0.0113606,88081.0,88070.0,0.00017032]
[1766131722803,0.0113612,88077.0,88070.0,2e-08]
[1766131723211,0.0113612,88077.0,88070.0,0.00572]
[1766131723505,0.0113604,88083.0,88070.0,0.00572]
[1766131724616,0.01153012,88087.0,88070.0,0.00572]
[1766131725117,0.00017032,88087.0,88070.0,0.00572]
[1766131728421,0.0113599,88086.0,88070.0,0.00572]
[1766131729119,0.00017032,88087.0,88070.0,0.00572]
[1766131729321,0.00017032,88087.0,88071.0,0.0113617]
[1766131730420,0.00017032,88087.0,88070.0,0.00572]
[1766131730618,0.0024,88117.0,88077.0,0.30172702]
[1766131730826,0.0113559,88117.0,88087.0,0.0113597]
[1766131731027,0.0113565,88112.0,88088.0,0.00568]
[1766131731211,0.00568,88125.0,88088.0,2.39192]
[1766131731412,0.0113559,88117.0,88088.0,2.39192]
[1766131731618,0.00017032,88111.0,88094.0,0.00017032]
[1766131732321,0.29036602,88110.0,88094.0,0.00017032]
[1766131732528,0.29036602,88110.0,88094.0,3.2e-07]
[1766131732715,0.30172292,88110.0,88094.0,3.2e-07]
[1766131732917,0.00017032,88111.0,88094.0,3.2e-07]
[1766131733112,0.01152702,88111.0,88094.0,3.2e-07]
[1766131733526,0.00017032,88111.0,88094.0,3.2e-07]
[1766131737223,0.0113576,88104.0,88094.0,3.2e-07]
[1766131737425,0.4314306,88110.0,88068.0,0.0113622]
[1766131737724,0.4257506,88100.0,88069.0,0.00568]
[1766131738026,0.00568,88110.0,88069.0,0.0170419]
[1766131738027,0.0113591,88093.0,88069.0,0.0170419]
[1766131738424,0.00017032,88090.0,88072.0,0.00017032]
[1766131738817,0.0113595,88089.0,88073.0,0.00572]
[1766131740026,0.01136,88085.0,88073.0,0.00572]
[1766131740329,0.01136,88085.0,88074.0,0.00568]
[1766131740520,0.0113605,88082.0,88066.0,0.0318]
[1766131740823,0.0113605,88082.0,88067.0,0.00568]
[1766131741214,0.0113599,88086.0,88067.0,0.00568]
[1766131741416,0.00564,88089.0,88068.0,0.00017032]
[1766131741618,0.00564,88089.0,88068.0,2e-08]
[1766131741619,0.0113613,88075.0,88068.0,2e-08]
[1766131741918,0.00568,88078.0,88058.0,0.00227124]
[1766131742114,0.0113614,88075.0,88058.0,1.24e-06]
[1766131742520,0.011362,88070.0,88058.0,1.24e-06]
[1766131742722,0.011362,88070.0,88056.0,1.24e-06]
[1766131743123,0.0113619,88071.0,88056.0,1.24e-06]
[1766131743324,0.00017032,88072.0,88056.0,1.24e-06]
[1766131746028,0.00017032,88072.0,88057.0,0.00572]
[1766131747130,0.00017032,88072.0,88057.0,0.0170835]
[1766131747331,0.00017032,88072.0,88057.0,0.00572]
[1766131747933,0.00017032,88072.0,88058.0,0.00572]
[1766131749128,3.2e-07,88072.0,88058.0,0.00572]
[1766131752323,3.2e-07,88072.0,88059.0,0.0113633]
[1766131752938,0.00227021,88098.0,88059.0,0.0113633]
[1766131752939,1e-08,88098.0,88060.0,0.4257506]
[1766131753233,0.01,88133.0,88120.0,0.00099999]
[1766131753429,0.0113509,88156.0,88130.0,0.00099999]
[1766131753626,0.28997975,88160.0,88131.0,0.00048]
[1766131753827,0.011351,88155.0,88131.0,0.00048]
[1766131754028,0.00017021,88152.0,88134.0,0.00017021]
[1766131754331,0.05,88164.0,88134.0,0.00017021]
[1766131754332,0.28997975,88190.0,88170.0,9e-08]
[1766131754523,0.28997975,88180.0,88136.0,2.38632]
[1766131754744,0.07337287,88195.0,88129.0,0.00014226]
[1766131754745,0.28997975,88150.0,88129.0,0.00014226]
[1766131755124,0.28997975,88140.0,88129.0,2.26e-06]
[1766131755333,0.28997975,88140.0,88098.0,0.0113582]
[1766131755334,0.00572,88140.0,88098.0,0.0113582]
[1766131755538,0.00572,88140.0,88044.0,0.0568263]
[1766131755539,0.42579641,88120.0,88073.0,2.38612]
[1766131755836,0.0113575,88105.0,88077.0,0.011361]
[1766131756032,0.0113578,88103.0,88071.0,0.0113618]
[1766131756333,0.0001703,88096.0,88063.0,2.38604]
[1766131756534,0.42579641,88090.0,88054.0,0.01151117]
[1766131756836,0.0113618,88071.0,88046.0,2.38604]
[1766131757040,0.00377347,88070.0,88048.0,0.00228]
[1766131757333,0.0113627,88065.0,88050.0,0.0001703]
[1766131757539,0.0113627,88065.0,88037.0,0.0113661]
[1766131757725,0.0113627,88065.0,88036.0,0.00014545]
[1766131757929,0.0001703,88068.0,88043.0,0.0113653]
[1766131758439,0.0001703,88068.0,88047.0,0.0001703]
[1766131758636,0.00496,88067.0,88047.0,0.0115351]
[1766131758841,0.0001703,88068.0,88047.0,0.0115351]
[1766131759141,0.0001703,88068.0,88052.0,0.0113642]
[1766131759439,0.0001703,88068.0,88047.0,0.0115352]
[1766131760142,0.0001703,88068.0,88052.0,0.0113642]
[1766131761542,0.0001703,88068.0,88047.0,0.0115352]
[1766131761944,0.0001703,88068.0,88051.0,0.0113643]
[1766131762359,0.0001703,88068.0,88047.0,0.0001703]
[1766131762955,0.0001703,88068.0,88053.0,0.011364]
[1766131763551,0.0001703,88068.0,88047.0,0.0115351]
[1766131764757,0.0001703,88068.0,88051.0,0.0113643]
[1766131765659,0.0001703,88068.0,88047.0,0.0001703]
[1766131767258,0.0001703,88068.0,88048.0,0.0113647]
[1766131767762,0.0001703,88068.0,88047.0,0.0001703]
[1766131769455,0.00392,88067.0,88047.0,0.0001703]
[1766131769661,3e-07,88068.0,88050.0,0.42579641]
[1766131769861,0.00136,88078.0,88055.0,0.0113638]
[1766131770058,0.0113594,88090.0,88061.0,0.0113631]
[1766131770260,0.0113597,88088.0,88061.0,0.0113631]
[1766131770762,4.879e-05,88087.0,88066.0,0.0001703]
[1766131771063,0.0001703,88083.0,88066.0,0.0001703]
[1766131771457,0.0001703,88083.0,88073.0,0.0113614]
[1766131771958,0.42579641,88140.0,88084.0,0.01136]
[1766131772264,0.06587939,88132.0,88088.0,0.0113596]
[1766131772468,0.0113551,88124.0,88090.0,0.42579641]
[1766131772674,0.0113555,88121.0,88093.0,0.0113589]
[1766131772859,0.0001703,88116.0,88098.0,0.0001703]
[1766131773468,0.0113563,88114.0,88098.0,0.0001703]
[1766131773858,0.0001703,88116.0,88098.0,0.0001703]
[1766131774171,0.0113584,88098.0,88079.0,0.00096]
[1766131774368,0.0143184,88098.0,88078.0,0.002]
[1766131774663,0.00296,88098.0,88079.0,0.0113608]
[1766131775072,0.0001703,88097.0,88080.0,0.0001703]
[1766131775567,0.0026,88102.0,88086.0,0.0113597]
[1766131775763,0.51553695,88140.0,88092.0,0.0113591]
[1766131776068,0.011356,88117.0,88092.0,0.0113591]
[1766131776269,2.39208,88131.0,88092.0,0.0113591]
[1766131776270,0.0113562,88115.0,88092.0,0.0113591]
[1766131776472,0.0113562,88115.0,88087.0,0.0113596]
[1766131776661,0.0001703,88110.0,88092.0,0.0001703]
[1766131776860,0.0113569,88109.0,88092.0,0.0001703]
[1766131778365,0.0001703,88110.0,88092.0,0.0001703]
[1766131778863,2.3862,88131.0,88092.0,0.0001703]
[1766131779071,0.00572,88130.0,88092.0,0.0001703]
[1766131779363,0.0113556,88119.0,88092.0,0.0001703]
[1766131779566,0.00572,88118.0,88092.0,0.0001703]
[1766131779767,0.0001703,88114.0,88092.0,0.0001703]
[1766131779970,0.0001703,88114.0,88093.0,0.00572]
[1766131780167,0.0001703,88114.0,88093.0,0.0170789]
[1766131780567,0.0001703,88114.0,88096.0,0.0113585]
[1766131781070,0.0001703,88114.0,88093.0,0.00572]
[1766131785077,0.0113569,88109.0,88093.0,0.00572]
[1766131785571,0.0001703,88114.0,88092.0,0.0001703]
[1766131785768,0.0113568,88110.0,88092.0,0.0001703]
[1766131785973,0.0001703,88114.0,88092.0,0.0001703]
[1766131786375,0.011357,88109.0,88092.0,0.0001703]
[1766131786579,0.00572,88108.0,88092.0,0.0001703]
[1766131787775,0.00572,88108.0,88092.0,3e-07]
[1766131787970,0.0113576,88104.0,88092.0,3e-07]
[1766131788284,0.0170771,88108.0,88092.0,3e-07]
[1766131788675,0.0113574,88105.0,88092.0,3e-07]
[1766131789676,0.00572,88108.0,88092.0,3e-07]
[1766131789872,0.0113584,88098.0,88092.0,3e-07]
[1766131790070,0.00572,88097.0,88092.0,3e-07]
[1766131791983,0.0113573,88106.0,88092.0,3e-07]
[1766131792280,0.011358,88101.0,88092.0,3e-07]
[1766131794483,0.0113583,88098.0,88092.0,3e-07]
[1766131794666,0.00572,88097.0,88092.0,3e-07]
[1766131800373,0.00572,88097.0,88058.0,2.38815124]
[1766131800688,0.29025767,88090.0,88058.0,0.00227124]
[1766131800871,0.00572,88089.0,88058.0,0.00227124]
[1766131801276,0.0113576,88104.0,88079.0,0.0113607]
[1766131801483,0.29025767,88090.0,88058.0,0.00227124]
[1766131801683,0.29025767,88070.0,88036.0,0.00014545]
[1766131801888,0.29025767,88060.0,88036.0,0.00014545]
[1766131802186,0.00572,88059.0,88036.0,0.00014545]
[1766131802387,0.011364,88055.0,88036.0,0.00014545]
[1766131802582,0.0058903,88054.0,88037.0,0.0001703]
[1766131802773,0.0001703,88054.0,88037.0,0.0001703]
[1766131802979,0.00188,88053.0,88037.0,0.0115364]
[1766131803282,0.00188,88053.0,88040.0,0.0113657]
[1766131803791,0.0001703,88054.0,88040.0,0.0113657]
[1766131804085,0.00172,88053.0,88040.0,0.0113657]
[1766131804689,0.00172,88053.0,88037.0,0.0001703]
[1766131805191,0.00092,88052.0,88038.0,0.011366]
[1766131805887,0.0113619,88071.0,88047.0,0.0113648]
[1766131806089,0.0113619,88071.0,88036.0,0.00014545]
[1766131806090,0.00372,88071.0,88051.0,0.0113644]
[1766131806293,0.0113607,88080.0,88054.0,0.011364]
[1766131806585,0.0113618,88072.0,88051.0,0.00572]
[1766131806782,0.00372,88071.0,88051.0,0.00572]
[1766131806983,0.0001703,88070.0,88052.0,0.0001703]
[1766131807677,0.00244,88069.0,88052.0,0.0115345]
[1766131808187,0.00244,88069.0,88052.0,0.0001703]
[1766131808583,0.0113632,88061.0,88036.0,0.00014545]
[1766131808787,0.00372,88060.0,88039.0,0.0113659]
[1766131809280,0.00372,88060.0,88036.0,0.01151165]
[1766131809481,0.00372,88060.0,88036.0,0.00014545]
[1766131809684,0.00372,88060.0,88039.0,0.0001703]
[1766131810383,2.38648,88125.0,88051.0,0.0568215]
[1766131810587,0.00572,88124.0,88082.0,0.0113603]
[1766131810881,0.011357,88109.0,88081.0,0.0170804]
[1766131811177,0.00372,88108.0,88081.0,0.00572]
[1766131811381,0.0001703,88103.0,88086.0,3e-07]
[1766131811585,0.0113579,88102.0,88086.0,3e-07]
[1766131812488,0.0001703,88103.0,88086.0,3e-07]
[1766131812990,1e-08,88098.0,88086.0,3e-07]
[1766131813181,1e-08,88103.0,88099.0,0.0113582]
[1766131815696,0.0033107,88132.0,88102.0,0.0113577]
[1766131815894,0.0033107,88132.0,88110.0,0.29025767]
[1766131816084,0.011353,88139.0,88115.0,0.0113561]
[1766131816397,0.0113533,88137.0,88112.0,0.0113564]
[1766131816591,0.0001702,88133.0,88116.0,0.0001702]
[1766131816785,0.0001702,88133.0,88120.0,0.29025767]
[1766131816986,2e-07,88133.0,88121.0,0.0170753]
[1766131817195,0.0022,88147.0,88121.0,0.0170753]
[1766131817389,0.0113509,88156.0,88130.0,0.29025767]
[1766131817590,0.0113519,88148.0,88130.0,0.29025767]
[1766131818092,0.0001702,88148.0,88130.0,0.0001702]
[1766131818294,0.0139499,88164.0,88131.0,0.00064]
[1766131818484,0.00226815,88178.0,88131.0,0.00064]
[1766131818485,0.0113506,88158.0,88131.0,0.011994]
[1766131818887,0.0026,88163.0,88131.0,0.00064]
[1766131819097,0.29025767,88160.0,88130.0,0.0001702]
[1766131819297,0.00016985,88154.0,88130.0,0.0001702]
[1766131819492,0.00572,88153.0,88130.0,0.0001702]
[1766131820101,0.011352,88147.0,88130.0,0.0001702]
[1766131820301,0.0113521,88147.0,88130.0,0.29042787]
[1766131820798,0.01152095,88154.0,88130.0,0.29614787]
[1766131820999,0.0113517,88150.0,88130.0,0.29614787]
[1766131821600,0.00572,88153.0,88130.0,0.29614787]
[1766131822202,0.00016985,88154.0,88132.0,0.0113539]
[1766131822399,2.38556,88180.0,88140.0,0.29025767]
[1766131822594,0.0113502,88162.0,88141.0,0.00572]
[1766131822902,0.00572,88163.0,88141.0,0.00572]
[1766131823493,0.00572,88163.0,88143.0,0.0001702]
[1766131824800,0.0056,88171.0,88150.0,0.29025767]
[1766131825100,0.0056,88171.0,88151.0,0.00572]
[1766131825299,0.0113488,88172.0,88151.0,0.00572]
[1766131826103,0.0113503,88161.0,88151.0,0.00572]
[1766131826298,0.0113497,88165.0,88151.0,0.00572]
[1766131826693,0.0113491,88170.0,88151.0,0.00572]
[1766131827302,0.0113495,88167.0,88151.0,0.00572]
[1766131827702,0.0113495,88167.0,88143.0,0.0001702]
[1766131827902,0.0113499,88164.0,88144.0,0.00284]
[1766131828097,0.0113503,88161.0,88144.0,0.00284]
[1766131829702,0.00572,88173.0,88144.0,0.00284]
[1766131830204,0.0113501,88163.0,88144.0,0.00284]
[1766131830404,0.0113489,88171.0,88147.0,0.0113519]
[1766131831005,0.00572,88173.0,88150.0,0.29025767]
[1766131831304,0.01135,88163.0,88151.0,0.00468]
[1766131831700,0.0113495,88167.0,88151.0,0.00468]
[1766131832604,0.0113499,88164.0,88151.0,0.00468]
[1766131833208,0.0113502,88162.0,88151.0,0.00468]
[1766131833509,0.00572,88173.0,88143.0,0.0001702]
[1766131833704,0.00572,88173.0,88144.0,0.00572]
[1766131834106,0.0113501,88162.0,88144.0,0.00572]
[1766131834311,0.00572,88173.0,88144.0,0.00572]
[1766131834609,0.0113489,88172.0,88142.0,0.00572]
[1766131835108,0.0113504,88160.0,88142.0,0.00572]
[1766131835605,0.0113508,88157.0,88142.0,0.0058902]
[1766131835808,0.0001702,88160.0,88142.0,0.0058902]
[1766131836601,0.0113505,88159.0,88142.0,0.0058902]
[1766131837811,0.0001702,88160.0,88142.0,0.0058902]
[1766131838203,2e-07,88160.0,88142.0,0.0058902]
[1766131838405,0.0113484,88176.0,88150.0,0.30160927]
[1766131838600,0.00670815,88178.0,88160.0,0.29025767]
[1766131838796,0.0113482,88177.0,88160.0,0.29025767]
[1766131839498,0.0113482,88177.0,88160.0,0.29042787]
[1766131839901,0.00670815,88178.0,88160.0,0.29042787]
[1766131840296,0.01805625,88178.0,88160.0,0.0001702]
[1766131840502,0.0113485,88175.0,88160.0,0.29042787]
[1766131840708,0.00226815,88178.0,88160.0,0.0001702]
[1766131840908,0.00226815,88178.0,88160.0,0.29042787]
[1766131842401,0.00226815,88178.0,88160.0,0.30177817]
[1766131842713,0.01361625,88178.0,88160.0,0.29042787]
[1766131843708,0.0113486,88174.0,88160.0,0.0001702]
[1766131843908,0.0113486,88174.0,88160.0,0.29042787]
[1766131844714,0.01361625,88178.0,88160.0,0.29042787]
[1766131845110,0.00226815,88178.0,88160.0,0.29042787]
[1766131845313,0.00226815,88178.0,88160.0,0.30177817]
[1766131845614,0.00226815,88178.0,88160.0,0.29042787]
[1766131846016,0.00226815,88178.0,88160.0,0.0001702]
[1766131846313,0.00226815,88178.0,88160.0,0.29042787]
[1766131847316,0.0113482,88177.0,88160.0,0.0001702]
[1766131847515,0.0113482,88177.0,88160.0,0.29042787]
[1766131847710,0.0113482,88177.0,88160.0,0.0001702]
[1766131848014,0.00226815,88178.0,88161.0,0.0113502]
[1766131848401,0.00226815,88178.0,88160.0,0.29042787]
[1766131849017,0.0113482,88177.0,88160.0,0.0001702]
[1766131851109,0.00226815,88178.0,88160.0,0.0115205]
[1766131852119,0.01361625,88178.0,88160.0,0.0001702]
[1766131852316,0.00226815,88178.0,88160.0,0.0001702]
[1766131852519,0.00226815,88178.0,88140.0,2.38396]
[1766131852721,0.0113489,88172.0,88149.0,0.0113517]
[1766131852923,0.0113495,88167.0,88150.0,0.42494869]
[1766131853118,0.0113494,88168.0,88150.0,0.42494869]
[1766131853424,0.00572,88171.0,88150.0,0.42494869]
[1766131853425,0.0113491,88170.0,88150.0,0.42494869]
[1766131853619,0.0001702,88169.0,88151.0,0.0001702]
[1766131854623,0.0001702,88169.0,88151.0,0.0115217]
[1766131854927,0.0001702,88169.0,88151.0,0.0001702]
[1766131855926,0.0113494,88168.0,88151.0,0.0001702]
[1766131857330,0.0001702,88169.0,88151.0,0.0001702]
[1766131857823,0.0113502,88162.0,88151.0,2e-07]
[1766131858031,0.0001702,88169.0,88151.0,2e-07]
[1766131858032,0.0113496,88166.0,88151.0,2e-07]
[1766131858229,0.0001702,88169.0,88151.0,2e-07]
[1766131858230,0.0113506,88158.0,88151.0,2e-07]
[1766131858528,0.0113504,88160.0,88151.0,2e-07]
[1766131860327,0.0113513,88153.0,88151.0,2e-07]
[1766131860528,0.0113513,88153.0,88133.0,0.00016]
[1766131860930,0.0113516,88150.0,88133.0,0.00016]
[1766131861529,0.0115218,88150.0,88133.0,0.0003302]
[1766131862330,0.011352,88147.0,88133.0,0.0003302]
[1766131862532,0.0001702,88150.0,88133.0,2e-07]
[1766131862732,0.0113525,88144.0,88133.0,2e-07]
[1766131863540,0.0113518,88149.0,88133.0,2e-07]
[1766131864430,0.0113522,88146.0,88133.0,2e-07]
[1766131866023,0.0115219,88150.0,88133.0,2e-07]
[1766131867039,0.0113521,88147.0,88133.0,2e-07]
[1766131867737,0.0113524,88144.0,88133.0,2e-07]
[1766131869340,0.0001702,88150.0,88133.0,2e-07]
[1766131869536,0.0113527,88142.0,88133.0,2e-07]
[1766131869835,0.0113521,88146.0,88133.0,2e-07]
[1766131870339,0.0113526,88143.0,88133.0,2e-07]
[1766131870539,0.0113528,88141.0,88133.0,2e-07]
[1766131871240,0.00572,88142.0,88114.0,0.0318]
[1766131871543,0.0113536,88135.0,88113.0,0.00572]
[1766131872241,0.42494869,88140.0,88115.0,0.0001702]
[1766131872635,0.00572,88142.0,88115.0,0.0001702]
[1766131873238,0.00572,88142.0,88113.0,2e-07]
[1766131873431,0.0113544,88129.0,88113.0,2e-07]
[1766131873637,0.00228,88128.0,88113.0,2e-07]
[1766131874038,0.00228,88128.0,88107.0,0.0113571]
[1766131874442,0.0001702,88126.0,88109.0,0.0001702]
[1766131875146,0.0001702,88126.0,88112.0,0.0113564]
[1766131875647,0.0001702,88126.0,88113.0,0.0113563]
[1766131875841,0.0001702,88126.0,88112.0,0.0113565]
[1766131876147,0.0001702,88126.0,88115.0,0.0113561]
[1766131876349,0.0001702,88126.0,88110.0,0.0113567]
[1766131876642,0.0001702,88126.0,88110.0,0.42494869]
[1766131876842,0.0113525,88144.0,88110.0,0.42494869]
[1766131877037,0.0113519,88148.0,88123.0,0.0113551]
[1766131877244,0.00364,88148.0,88129.0,0.0113543]
[1766131877444,0.0113514,88152.0,88129.0,0.0113543]
[1766131877644,0.0026,88147.0,88129.0,0.0113543]
[1766131877944,0.0027702,88147.0,88129.0,0.0001702]
[1766131878144,0.0027702,88147.0,88130.0,0.0113542]
[1766131878448,0.0027702,88147.0,88129.0,0.0001702]
[1766131879149,0.0027702,88147.0,88129.0,0.0115245]
[1766131879544,0.0027702,88147.0,88132.0,0.0113539]
[1766131880443,0.0027702,88147.0,88129.0,0.0001702]
[1766131882946,0.0113526,88143.0,88129.0,0.0001702]
[1766131883852,0.0027702,88147.0,88111.0,0.0318]
[1766131884048,0.0027702,88147.0,88110.0,2.3960767]
[1766131884049,0.0113543,88130.0,88106.0,0.0113573]
[1766131884241,0.0113545,88128.0,88106.0,0.0113573]
[1766131884546,0.00056,88129.0,88109.0,0.0113569]
[1766131884750,0.00056,88129.0,88112.0,0.0113565]
[1766131884946,0.0001702,88126.0,88111.0,0.0113566]
[1766131885947,0.0001702,88126.0,88108.0,0.0001702]
[1766131886251,0.0001702,88126.0,88109.0,0.0113568]
[1766131888054,0.0001702,88126.0,88112.0,0.0113565]
[1766131889456,0.0001702,88126.0,88108.0,0.0115272]
[1766131889955,0.0001702,88126.0,88108.0,0.0001702]
[1766131890455,0.0001702,88126.0,88109.0,0.0113569]
[1766131892159,0.0001702,88126.0,88112.0,0.0113565]
[1766131893958,0.0113529,88141.0,88118.0,0.0113557]
[1766131894160,0.002,88140.0,88118.0,0.0113557]
[1766131894557,0.0113503,88161.0,88121.0,0.0113552]
[1766131894757,0.0113518,88149.0,88127.0,0.0113545]
[1766131894947,0.0113526,88143.0,88129.0,0.0001702]
[1766131897561,0.0115223,88147.0,88129.0,0.0001702]
[1766131897860,0.0113524,88144.0,88129.0,0.0001702]
[1766131899160,0.0113529,88141.0,88129.0,0.0001702]
[1766131899462,0.0113536,88135.0,88123.0,0.00572]
[1766131899646,0.0001702,88147.0,88123.0,0.00572]
[1766131899852,0.0113531,88139.0,88123.0,0.00572]
[1766131901857,0.0113526,88143.0,88123.0,0.00572]
[1766131902366,0.011353,88140.0,88123.0,0.00572]
[1766131902551,0.0113525,88144.0,88123.0,0.00572]
[1766131902749,0.0001702,88147.0,88123.0,0.00572]
[1766131903564,0.0113527,88142.0,88123.0,0.00572]
[1766131905464,0.0113523,88145.0,88123.0,0.00572]
[1766131905668,0.0001702,88147.0,88123.0,0.00572]
[1766131907468,0.0113529,88140.0,88123.0,0.00572]
[1766131908977,0.0113525,88144.0,88123.0,0.00572]
[1766131909164,0.0001702,88147.0,88123.0,0.00572]
[1766131910171,0.0113525,88144.0,88124.0,0.011355]
[1766131910971,0.0001702,88147.0,88124.0,0.011355]
[1766131911773,0.0001702,88147.0,88127.0,0.0113545]
[1766131912268,0.0113522,88146.0,88124.0,0.011355]
[1766131912469,0.0113532,88138.0,88123.0,0.00572]
[1766131912770,0.0113527,88142.0,88123.0,0.00572]
[1766131913069,0.011353,88140.0,88123.0,0.00572]
[1766131915267,0.0001702,88147.0,88123.0,0.00572]
[1766131915466,0.0001702,88147.0,88122.0,0.0001702]
[1766131915467,0.0113543,88130.0,88122.0,0.0001702]
[1766131915669,0.0113546,88127.0,88103.0,0.06250186]
[1766131915871,0.0113546,88127.0,88104.0,0.00572]
[1766131916077,0.0113541,88132.0,88110.0,0.0113568]
[1766131916873,0.0001702,88130.0,88112.0,0.0001702]
[1766131919674,0.0001702,88130.0,88112.0,0.0115267]
[1766131920678,0.0001702,88130.0,88112.0,0.0001702]
[1766131921176,0.0001702,88130.0,88120.0,0.29008297]
[1766131922579,0.00168,88133.0,88121.0,0.0113553]
[1766131923586,0.0001702,88136.0,88123.0,0.29008297]
[1766131923776,0.0113511,88155.0,88130.0,0.30143717]
[1766131923976,0.00572,88154.0,88133.0,0.0113537]
[1766131924178,0.0113513,88153.0,88131.0,0.011354]
[1766131924480,0.00572,88154.0,88134.0,0.0113536]
[1766131924675,0.0001702,88153.0,88135.0,0.0001702]
[1766131925282,0.0001702,88153.0,88140.0,0.29008297]
[1766131925683,0.0058902,88153.0,88140.0,0.29008297]
[1766131926879,0.0058902,88153.0,88135.0,0.0001702]
[1766131927078,0.29008297,88150.0,88135.0,0.0001702]
[1766131927480,0.0113518,88149.0,88135.0,0.0001702]
[1766131927783,0.29008297,88150.0,88135.0,0.0001702]
[1766131927980,0.29008297,88150.0,88135.0,2e-07]
[1766131928182,0.0113523,88145.0,88135.0,2e-07]
[1766131928376,0.00572,88144.0,88135.0,2e-07]
[1766131929183,0.00572,88147.0,88135.0,2e-07]
[1766131929483,0.0001702,88153.0,88135.0,2e-07]
[1766131929484,0.0046502,88153.0,88137.0,0.29008297]
[1766131929780,0.0046502,88153.0,88140.0,0.29008297]
[1766131930575,0.0046502,88153.0,88135.0,2e-07]
[1766131931687,0.0113514,88152.0,88135.0,2e-07]
[1766131933787,0.0113526,88143.0,88135.0,2e-07]
[1766131934285,0.0113521,88147.0,88135.0,2e-07]
[1766131934475,0.0113524,88144.0,88135.0,2e-07]
[1766131937482,0.011352,88148.0,88135.0,2e-07]
[1766131937784,0.0113523,88145.0,88135.0,2e-07]
[1766131940489,0.29008297,88150.0,88135.0,2e-07]
[1766131941087,0.0113533,88137.0,88118.0,0.0318]
[1766131941387,0.29008297,88140.0,88119.0,0.00284]
[1766131941587,0.0113535,88136.0,88120.0,0.29008297]
[1766131941991,0.30143597,88140.0,88120.0,0.30143847]
[1766131942391,0.011353,88140.0,88120.0,0.30143847]
[1766131943385,0.011353,88140.0,88120.0,0.29008297]
[1766131943587,0.0113537,88135.0,88120.0,0.29008297]
[1766131945992,0.0113532,88138.0,88120.0,0.29008297]
[1766131947494,0.0113532,88138.0,88119.0,0.0030102]
[1766131947793,0.0113532,88138.0,88120.0,0.29008297]
[1766131949796,0.0113535,88136.0,88120.0,0.29008297]
[1766131951288,0.29008297,88140.0,88120.0,0.30143847]
[1766131951684,0.29008297,88140.0,88120.0,0.29008297]
[1766131952080,0.29008297,88140.0,88119.0,2e-07]
[1766131952287,0.0113554,88121.0,88100.0,2.67480297]
[1766131952485,0.29008297,88120.0,88101.0,0.00572]
[1766131953191,0.0001702,88119.0,88102.0,0.0001702]
[1766131956390,0.0001702,88119.0,88101.0,0.00572]
[1766131956391,0.0113564,88113.0,88099.0,0.00011691]
[1766131956593,0.00572,88112.0,88099.0,0.00011691]
[1766131959601,0.0113569,88109.0,88097.0,0.00011348]
[1766131960298,0.00572,88112.0,88097.0,0.00011348]
[1766131960701,0.00011691,88111.0,88097.0,0.00011348]
[1766131962597,0.30143977,88110.0,88097.0,0.00011348]
[1766131962803,0.0113581,88100.0,88097.0,3.48e-06]
[1766131963194,0.0113586,88097.0,88074.0,0.0113614]
[1766131963395,0.00572,88096.0,88074.0,0.0170814]
[1766131963593,0.00011691,88095.0,88074.0,0.0170814]
[1766131963795,0.0113589,88094.0,88074.0,0.00572]
[1766131963996,0.00011691,88095.0,88053.0,2.3852]
[1766131964306,0.0113608,88079.0,88060.0,0.29008297]
[1766131964496,0.29008297,88080.0,88055.0,0.0113638]
[1766131964696,0.00011691,88078.0,88061.0,0.00572]
[1766131965091,0.00011691,88078.0,88053.0,2.3852]
[1766131965306,0.00011691,88078.0,87999.0,0.1704551]
[1766131965307,0.29008297,88071.0,88040.0,2.38528]
[1766131965605,0.00572,88070.0,88058.0,1.24e-06]
[1766131965991,0.29008297,88060.0,88042.0,0.00084]
[1766131966200,0.00572,88059.0,88042.0,0.00084]
[1766131966402,0.00572,88059.0,88032.0,0.0004]
[1766131966710,0.011364,88054.0,88032.0,0.0004]
[1766131966911,0.00585023,88053.0,88032.0,0.0004]
[1766131967109,0.0113643,88052.0,88032.0,0.0004]
[1766131967309,0.29008297,88050.0,88032.0,0.0004]
[1766131967611,0.30144757,88050.0,88032.0,0.0004]
[1766131967808,0.0113646,88050.0,88032.0,0.0004]
[1766131968012,0.29008297,88042.0,88026.0,0.00016]
[1766131968210,0.00572,88041.0,88026.0,0.00016]
[1766131968412,0.00572,88041.0,88018.0,0.01364088]
[1766131968612,0.01149539,88040.0,88018.0,0.00227228]
[1766131968817,0.30157836,88040.0,88018.0,0.00227228]
[1766131969013,0.00012949,88040.0,88018.0,0.00227228]
[1766131969214,0.29021246,88040.0,88018.0,0.00227228]
[1766131969415,0.00012949,88040.0,88018.0,0.00227228]
[1766131971221,0.0113659,88039.0,88018.0,0.00227228]
[1766131971618,0.00012949,88040.0,88018.0,0.00227228]
[1766131971823,0.0113665,88035.0,88018.0,0.00227228]
[1766131972022,0.00192,88034.0,88018.0,0.00227228]
[1766131972223,0.0113668,88033.0,88018.0,0.00227228]
[1766131972426,0.0113673,88029.0,88018.0,0.00227228]
[1766131973025,0.00192,88034.0,87999.0,0.0014]
[1766131973026,0.0113683,88021.0,87999.0,0.0014]
[1766131973231,0.0113688,88018.0,87999.0,0.0014]
[1766131974430,0.0001704,88019.0,87991.0,2.38644]
[1766131974431,0.0001704,88019.0,87992.0,0.00572]
[1766131975032,0.0115389,88019.0,87992.0,0.017092]
[1766131975226,0.0001704,88019.0,87996.0,0.01148158]
[1766131975434,0.0001704,88019.0,87996.0,0.00011018]
[1766131976520,0.0113694,88013.0,87996.0,0.00011018]
[1766131976725,0.00580874,88012.0,87996.0,0.00011018]
[1766131976923,0.0113696,88011.0,87996.0,0.00011018]
[1766131977327,0.00580874,88012.0,87996.0,1.8e-07]
[1766131977328,0.0113701,88007.0,87996.0,1.8e-07]
[1766131977731,0.01717824,88012.0,87996.0,1.8e-07]
[1766131978033,0.0113699,88008.0,87996.0,1.8e-07]
[1766131978333,0.0113705,88004.0,87996.0,1.8e-07]
[1766131978524,0.00572,88003.0,87996.0,1.8e-07]
[1766131979531,0.0113707,88002.0,87996.0,1.8e-07]
[1766131979734,0.00572,88003.0,87996.0,1.8e-07]
[1766131980126,0.0113712,87998.0,87996.0,1.8e-07]
[1766131980321,0.0113712,87998.0,87960.0,0.0113084]
[1766131980322,0.00572,88003.0,87971.0,0.00272]
[1766131980527,0.011372,87992.0,87971.0,0.00272]
[1766131980727,0.00184,87991.0,87971.0,0.00272]